Cogmind - Beta 10.1 @@@ ROGUE MODE // 2020.09.23 @ 10:24:52 Player: Nimraaz Result: Destroyed by S-10 Pest with Light Assault Rifle Performance ------------- Evolutions (1) 500 Regions Visited (3) 600 Robots Destroyed (20) 100 Value Destroyed (423) 423 Prototype IDs (2) 40 Alien Tech Used (0) 0 Bonus (0) 0 TOTAL SCORE: 1663 Bonus ------- None Cogmind --------- Core Integrity 0/400 Matter 277/300 Energy 265/265 System Corruption 0% Temperature Cool (0) Movement Core (150) Ox2 Location -9/Materials Parts ------- > --- POWER (1) -------- Improved Ion Engine > --- PROPULSION (3) --- (None) > --- UTILITY (3) ------ Improved Signal Interpreter > --- WEAPON (2) ------- (None) > --- INVENTORY (4) ---- Heat Sink Improved Heat Sink High-capacity Storage Unit Improved Sensor Array Peak State ------------ > --- POWER ------------ Ion Engine > --- PROPULSION ------- Aluminum Leg Aluminum Leg Carbon-fiber Leg > --- UTILITY ---------- High-capacity Storage Unit Improved Signal Interpreter Medium Armor Plating > --- WEAPON ----------- Beamcaster Light Assault Rifle > --- INVENTORY -------- Light Angular Momentum Engine Aluminum Leg Hover Unit Improved Heat Sink Large Storage Unit Improved Sensor Array Improved Sensor Array Improved Signal Interpreter Core Shielding Light Assault Rifle Grenade Launcher [Rating: 19] Favorites ----------- Power Ion Engine Engine Ion Engine Propulsion Aluminum Leg Treads Light Treads Leg Aluminum Leg Wheel Wheel Hover Unit Hover Unit Utility Improved Sensor Array Device Improved Sensor Array Storage High-capacity Storage Unit Processor Improved Signal Interpreter Protection Medium Armor Plating Weapon Light Assault Rifle Energy Gun Beamcaster Ballistic Gun Light Assault Rifle Build | -11 -10 -10 -9 ------- Run | Scr Mat Min Mat Slots Evolved 2 | . . . 2 Power . | . . . . Propulsion 1 | . . . 1 Utility 1 | . . . 1 Weapon . | . . . . Parts Attached 53 | 8 13 5 27 Power 5 | 1 2 . 2 Engine 5 | 1 2 . 2 Core . | . . . . Reactor . | . . . . Propulsion 19 | 4 4 3 8 Treads 1 | 1 . . . Leg 13 | 2 2 2 7 Wheel 1 | 1 . . . Hover 4 | . 2 1 1 Flight . | . . . . Utility 16 | 1 5 . 10 Device 4 | . 2 . 2 Storage 5 | 1 2 . 2 Processor 2 | . 1 . 1 Hackware . | . . . . Protection 5 | . . . 5 Artifact . | . . . . Weapon 13 | 2 2 2 7 Energy Gun 5 | 1 . 1 3 Energy Cannon . | . . . . Ballistic Gun 8 | 1 2 1 4 Ballistic Cannon . | . . . . Launcher . | . . . . Special Weapon . | . . . . Impact Weapon . | . . . . Slashing Weapon . | . . . . Piercing Weapon . | . . . . Special Melee Weapon . | . . . . Unidentified Prototypes . | . . . . Parts Lost 21 | . 3 1 17 Power 2 | . 1 . 1 Propulsion 10 | . 2 . 8 Utility 2 | . . . 2 Weapon 7 | . . 1 6 Highest Loss Streak 8 | . 2 1 8 Average Slot Usage (%) 88 | . 88 88 87 Engine 12 | . 13 14 10 Leg 21 | . 13 28 25 Hover 6 | . 14 . 2 Device 9 | . 10 14 6 Storage 12 | . 14 14 9 Processor 4 | . . . 10 Protection 1 | . . . 4 Energy Gun 4 | . 1 4 8 Ballistic Gun 14 | . 21 13 9 Naked Turns . | . . . . Heaviest Build 50 | 11 39 44 50 Greatest Support 35 | 20 20 25 35 Greatest Overweight (x) 15 | 1 1 2 15 Average Overweight (x) . | . . 1 . Largest Inventory Capacity 12 | 6 12 12 12 Average Capacity 9 | 5 7 12 10 Most Carried 12 | 5 8 12 12 Average Carried 7 | 2 5 9 8 Final Capacity 12 | 6 12 12 4 Final Carried 12 | 4 8 12 4 Class Distribution -------------------- 85% | Mutant 14% | Scavenger-Mutant Dominant Class ---------------- Mutant | -10/Materials Mutant | -10/Mines Mutant | -9/Materials Resources | -11 -10 -10 -9 ----------- Run | Scr Mat Min Mat Matter Collected 756 | 234 68 110 344 Remotely . | . . . . Salvage Created 528 | . 91 10 427 Parts 38 | . 8 2 28 Haulers Intercepted . | . . . . Recyclers Shooed . | . . . . Parts Field Recycled . | . . . . Retrieved Matter . | . . . . Parts Self-Destructed . | . . . . Prevented . | . . . . Kills | -11 -10 -10 -9 ------- Run | Scr Mat Min Mat Combat Hostiles Destroyed 20 | . 6 1 13 Guns 20 | . 6 1 13 Classes Destroyed 3 | . 1 . 2 Swarmer 13 | . 6 1 6 Grunt 5 | . . . 5 Sentry 2 | . . . 2 Best Kill Streak 4 | . 3 1 4 Combat Bots Only 4 | . 3 1 4 Max Kills in Single Turn 1 | . 1 1 1 Gunslinging . | . . . . Exploded . | . . . . Melee . | . . . . Uniques/NPCs Destroyed . | . . . . Combat | -11 -10 -10 -9 -------- Run | Scr Mat Min Mat Damage Taken 2490 | . 546 34 1910 Core 548 | . 148 . 400 Absorbed by Shields . | . . . . Core Remaining (%) 70 | 100 . 40 . Volleys Fired 85 | . 29 3 53 Largest 2 | . 2 1 2 Hottest 96 | . 40 75 96 Shots Fired 129 | . 38 3 88 Gun 129 | . 38 3 88 Cannon . | . . . . Launcher . | . . . . Special . | . . . . Kinetic 90 | . 38 2 50 Thermal 39 | . . 1 38 Explosive . | . . . . Electromagnetic . | . . . . Robot Hit Streak 15 | . 7 2 15 Robot Miss Streak 6 | . 6 1 3 Penetration Max . | . . . . Secondary Targets 4 | . 2 . 2 Max Gunslinging Chain 1 | . 1 . 1 Shots Hit Robots 73 | . 18 2 53 Core Hits 28 | . 8 1 19 Critical Hits . | . . . . Critical Kills . | . . . . Critical Parts Destroyed . | . . . . Melee Attacks . | . . . . Impact . | . . . . Slashing . | . . . . Piercing . | . . . . Sneak Attacks . | . . . . Combat Hostiles . | . . . . Follow-up Attacks . | . . . . Damage Inflicted 905 | . 209 30 666 Guns 904 | . 209 30 665 Cannons . | . . . . Explosions . | . . . . Melee . | . . . . Ramming 1 | . . . 1 Kinetic 606 | . 209 10 387 Thermal 298 | . . 20 278 Explosive . | . . . . Electromagnetic . | . . . . Impact . | . . . . Slashing . | . . . . Piercing . | . . . . Highest Corruption 3 | . 3 3 . Average Corruption 2 | . 2 3 . Corruption Purged . | . . . . Effects 11 | . 5 6 . Message Errors 5 | . 3 2 . Matter Fused 3 | . 1 2 . Heat Flow Errors 1 | . . 1 . Energy Discharges 1 | . 1 . . Data Loss (minor) 1 | . . 1 . Overload Shots . | . . . . Overflow Damage . | . . . . Projectiles . | . . . . Explosions . | . . . . Melee . | . . . . Knockbacks . | . . . . Impact . | . . . . Kinetic . | . . . . Secondary . | . . . . Self-Inflicted Damage . | . . . . Shots . | . . . . Rammed 1 | . . . 1 Targets Rammed 1 | . . . 1 Kicked . | . . . . Crushed . | . . . . Highest Temperature 541 | . 4 209 541 Average Temperature 161 | . 1 116 176 Received Heat Transfer 402 | . . . 402 Effects 9 | . . . 9 Shutdowns 3 | . . . 3 Energy Bleed 1 | . . . 1 Interference 4 | . . . 4 Damage (major) 1 | . . . 1 Siege Activations . | . . . . Robots Corrupted . | . . . . Combat Hostiles . | . . . . Parts Fried . | . . . . Impact Corruptions . | . . . . Robots Melted . | . . . . Combat Hostiles . | . . . . Parts Melted 1 | . . . 1 Heat Transferred 630 | . . 37 593 Parts Sabotaged . | . . . . Parts Stolen . | . . . . Parts Stripped . | . . . . Power Chain Reactions . | . . . . Missiles Intercepted . | . . . . Alert | -11 -10 -10 -9 ------- Run | Scr Mat Min Mat Peak Influence 202 | . 128 20 202 Initial 7 | . . 5 7 Average 52 | . 59 9 76 Maximum Alert Level 1 | . . . 1 Low Security (%) 94 | 100 100 100 85 Level 1 5 | . . . 14 Level 2 . | . . . . Level 3 . | . . . . Level 4 . | . . . . Level 5 . | . . . . High Security . | . . . . Max Security . | . . . . Squads Dispatched 1 | . . . 1 Investigation . | . . . . Extermination . | . . . . Reinforcement 1 | . . . 1 Assault . | . . . . Garrison . | . . . . Intercept . | . . . . Construction Impeded . | . . . . Haulers Reinforced . | . . . . Stealth | -11 -10 -10 -9 --------- Run | Scr Mat Min Mat Distress Signals 1 | . 1 . . Communications Jammed . | . . . . Distress Signals . | . . . . Times Spotted 34 | . 9 1 24 Peak Tracking Total 6 | . 4 1 6 Tactical Retreats 1 | . . . 1 Traps | -11 -10 -10 -9 ------- Run | Scr Mat Min Mat Traps Triggered 3 | . 3 . . Indirectly . | . . . . Trap Hack Attempts . | . . . . Triggered . | . . . . Disarmed . | . . . . Reprogrammed . | . . . . Reused . | . . . . Traps Extracted . | . . . . Installed . | . . . . Triggered . | . . . . Machines | -11 -10 -10 -9 ---------- Run | Scr Mat Min Mat Machines Disabled 2 | . . . 2 Max in Single Turn 1 | . . . 1 Machines Sabotaged . | . . . . Garrisons Compromised . | . . . . Overloaded Fab Kills . | . . . . Fab Network Shutdowns . | . . . . Hacking | -11 -10 -10 -9 --------- Run | Scr Mat Min Mat Machines Accessed 3 | . 2 . 1 Terminals 2 | . 2 . . Fabricators . | . . . . Repair Stations 1 | . . . 1 Recycling Units . | . . . . Scanalyzers . | . . . . Garrison Access . | . . . . Total Hacks 7 | . 4 . 3 Successful 4 | . 2 . 2 Failed 3 | . 2 . 1 Catastrophic . | . . . . Database Lockouts . | . . . . Manual . | . . . . Terminals 4 | . 4 . . Fabricators . | . . . . Repair Stations 3 | . . . 3 Recycling Units . | . . . . Scanalyzers . | . . . . Garrison Access . | . . . . Terminal Hacks 2 | . 2 . . Prototype ID Bank 1 | . 1 . . Maintenance Status 1 | . 1 . . Fabricator Hacks . | . . . . Repair Station Hacks 2 | . . . 2 Scan Component 1 | . . . 1 Repair 1 | . . . 1 Recycling Unit Hacks . | . . . . Scanalyzer . | . . . . Garrison Access Hacks . | . . . . Unauthorized Hacks . | . . . . Terminals . | . . . . Fabricators . | . . . . Repair Stations . | . . . . Recycling Units . | . . . . Scanalyzers . | . . . . Garrison Access . | . . . . Data Cores Recovered . | . . . . Used . | . . . . Hacking Detections 3 | . 2 . 1 Full Trace Events . | . . . . Feedback Events . | . . . . Feedback Blocked . | . . . . Robot Schematics Acquired . | . . . . Robots Built . | . . . . Matter . | . . . . Time . | . . . . Total Robot Build Rating . | . . . . Part Schematics Acquired . | . . . . Parts Built . | . . . . Matter . | . . . . Time . | . . . . Total Part Build Rating . | . . . . Parts Repaired 1 | . . . 1 Time 32 | . . . 32 Parts Recycled . | . . . . Recycled Matter . | . . . . Retrieved Matter . | . . . . Retrieved Components . | . . . . Parts Scanalyzed . | . . . . Part Schematics Acquired . | . . . . Parts Damaged . | . . . . Bothacking | -11 -10 -10 -9 ------------ Run | Scr Mat Min Mat Used RIF Installer . | . . . . Robots Hacked . | . . . . Non-combat . | . . . . Combat . | . . . . Robot Hacks Applied . | . . . . Relay Couplers Released . | . . . . Robots Rewired . | . . . . Allies Hacked . | . . . . Hacks Repelled . | . . . . Allies | -11 -10 -10 -9 -------- Run | Scr Mat Min Mat Total Allies . | . . . . Largest Group . | . . . . Highest-Rated Group . | . . . . Highest-Rated Ally . | . . . . Total Orders . | . . . . Ally Attacks . | . . . . Total Damage . | . . . . Kills . | . . . . Allies Corrupted . | . . . . Allies Melted . | . . . . Intel | -11 -10 -10 -9 ------- Run | Scr Mat Min Mat Robot Analysis Total . | . . . . Derelict Logs Recovered . | . . . . Drone Launches . | . . . . Drone Recoveries . | . . . . Exploration | -11 -10 -10 -9 ------------- Run | Scr Mat Min Mat Turns Passed 1384 | 65 489 284 546 Spaces Moved 793 | 44 362 176 211 Core 20 | 3 . . 17 Treads 1 | 1 . . . Legs 524 | 25 129 176 194 Wheels 15 | 15 . . . Hover 233 | . 233 . . Flight . | . . . . Fastest Speed 50 | 50 56 150 120 Average Speed 128 | 104 108 151 149 Slowest Speed 800 | 160 150 180 800 Overloaded Moves . | . . . . Propulsion Burnouts . | . . . . Robots Hopped . | . . . . Cave-ins Triggered . | . . . . Exploration Rate (%) 30 | 4 50 44 22 Regions Visited 3 Branch Regions 1 Pre-discovered Areas . | . . . . Known Exits Taken . | . . . . Unknown Exits Taken 3 | 1 1 1 . Scrap Searched . | . . . . Spaces Dug . | . . . . Terrain Destroyed . | . . . . Melee . | . . . . Projectile . | . . . . AOE . | . . . . Terrain Rammed . | . . . . Walls Destroyed . | . . . . Machines Disabled . | . . . . Actions | -11 -10 -10 -9 --------- Run | Scr Mat Min Mat Total 1038 | 60 425 190 363 Wait 51 | . 6 2 43 Move 790 | 43 361 175 211 Hop . | . . . . Pick Up 34 | 7 10 4 13 Fast Attach 16 | 5 2 2 7 Attach 17 | 1 4 . 12 Detach 2 | . 1 . 1 Swap 20 | 2 7 3 8 Drop 22 | 2 5 1 14 Fire 85 | . 29 3 53 Melee . | . . . . Ram 1 | . . . 1 Kick . | . . . . Crush . | . . . . Escape Stasis . | . . . . Rewire . | . . . . Trap . | . . . . Miscellaneous . | . . . . Route ------- -11/Scrapyard -10/Materials (discovered 2 exits: *Mat / [*Min]) -10/Mines (discovered 2 exits: *Mat / [*Exi]) -9/Materials History --------- Turn | Location | Event 22 | -11/Scrapyard | Discovered new exit (range 15) 66 | -11/Scrapyard | Entered Materials 188 | -10/Materials | Discovered new exit (range 15) 305 | -10/Materials | Build established: Mutant 417 | -10/Materials | Core integrity fell below 50% 522 | -10/Materials | Discovered new exit (range 12) 555 | -10/Materials | Entered Mines 583 | -10/Mines | Met a Derelict bent on vengeance 610 | -10/Mines | Deemed a non-threat by the Exiles lab entrance 612 | -10/Mines | Discovered new exit (range 5) 801 | -10/Mines | Discovered new exit (range 11) 839 | -10/Mines | Entered Materials 839 | -9/Materials | Evolved 2 slots: Propulsion x1, Utility x1 882 | -9/Materials | Repaired Imp. Sensor Array 1107 | -9/Materials | Lost 5 parts (2n3w) 1175 | -9/Materials | Lost 3 parts (1n1u1w) 1320 | -9/Materials | Core integrity fell below 50% 1360 | -9/Materials | Core integrity fell below 20% 1375 | -9/Materials | Lost 8 parts (1p4n1u2w) 1385 | -9/Materials | Destroyed by S-10 Pest with Light Assault Rifle Last Messages --------------- G-34 Mercenary unfolds itself. R-06 Scavenger collects Lgt. Ion Engine. Acquired 13 matter. R-06 Scavenger collects Lrg. Storage Unit. Aluminum Leg severed. Lgt. Angular Momentum Engine destroyed. Beam Rifle destroyed. Acquired 20 matter. Acquired 15 matter. Aluminum Leg destroyed. Imp. Sensor Array destroyed. Aluminum Leg destroyed. K-01 Serf collects debris. Med. Armor Plating severed. K-01 Serf collects debris. Dropped Hcp. Storage Unit. K-01 Serf collects debris. Slammed into K-01 Serf. Destabilizing: System interference. Imp. Signal Interpreter temporarily disabled. Map ----- +----------------------------------------------------+ | ??????????????????????????????????????????? | | ??????????????????????????????????????????? | | ??????????????????????????????????????????? | | ??????????????????????????????????????????? | | ??????????????????????????????????????????? | | ??????????????????????????????????????????? | | ??????????????????????????????????????????? | | ?????????????????????????????????? ??????? | | ?????????????????????????????????? #?????? | | ?????????????????????????????????? #?????? | | ?????????????????????????????????? #?????? | | ?????????????????????????????????? #?????? | | ?????????????????????????????? """ #?????? | | ?????????????????????????????? """ #?????? | | ???????????????????????????????""" #?????? | | ??????????????????????????????? +?????? | | ??????????????????????#???????? #?????? | | ??????????????????????# ??????? #?????? | | ??????????????????????? ?????? #?????? | | ?????????????????????####+####### #?????? | | ?????????????????????# ## #?????? | | ?????????????????????# ## #?????? | | ?????????????????????# """ """ + #?????? | | ?????????????????????# """s""" ### ##?????? | | ?????????????????????# """s""" #?#!#??????? | | ?????????????????????# @ls #?#!#??????? | | ?????????????????????# g #?#!#??????? | | ?????????????????????# #?#!#??????? | | ?????????????????????#############+#####??? | | ???????????????????????????# % #??? | | ???????????????????????????# """%"" #??? | | ???????????????????????????# """ """ #??? | | ???????????????????????????# """ "" #??? | | ???????????????????????????# """ """= #??? | | ???????????????????????????# #??? | | ???????????????????????????# #??? | | ??????????????????????????##+####+########? | | ??????????????????????????# + # | | ??????????????????????????# # """ # | | ??????????????????????????# + """ # | | ??????????????????????????## ### # """ # | | ??????????????????????######+### # # | | ??????????????????????# # # # | | ?????????#######??????# """ # # # | | ?????????# #??????# """ # # # | | ?????????# #??????# """ # ######## | | ?????????# ######## # ### #### | | ?????????# # ## """ # # # | | ?????????# # ## "Y # #"" # | | ?????????# + + """ # #"T # | +----------------------------------------------------+ Best States ------------- Heat Dissipation 28 Energy Generation 18 Energy Capacity 265 Matter Stores 299 Matter Capacity 300 Sight Range 16 Robot Scan Range 13 Terrain Scan Density 10 Armor Coverage 450 Evasion (%) 53 Item Schematics ----------------- None Robot Schematics ------------------ None Fabricated ------------ Nothing Alien Tech Used ----------------- None Achievements -------------- I Spy Challenges ------------ None Game ------ Seed DimensionalPointHammer Manual? 0 Play Time 00:22:36 Cumulative 3.5 hours Start 2020.09.23 @ 10:01:53 End 2020.09.23 @ 10:24:52 Sessions 1 Manual Loads 0 Difficulty Rogue Special Mode None Game No. 6 Rogue 6 Adventurer 0 Explorer 0 Win Type - Total 0 Types 0/0/0/0/0/0/0/0/0 Lore% 2 Gallery% 8 Achievement% 8 Wizard Run 0 Options --------- ASCII 0 Keyboard 1 Movement Numpad Keybinds 0 Fullscreen 2 Font 18/TerminusBold Map View 76x50 Tactical HUD 0 Map Filters NONE Filters NONE Steam 0 RUN: 919c4710-8841-4d32-b506-274391e70958